bitfinex/quotes_BTCUSD_20250525
["timestamp","ask_amount","ask_price","bid_price","bid_amount"]
[1748140891262,0.08954556,107500.0,107470.0,1.11823166]
[1748140891404,0.08954556,107500.0,107460.0,0.06326714]
[1748140891612,0.08954556,107500.0,107470.0,1.11893182]
[1748140891819,0.08954556,107500.0,107460.0,0.02631929]
[1748140892018,0.08954556,107500.0,107470.0,1.11893182]
[1748140892220,0.08954556,107500.0,107480.0,0.2784]
[1748140892438,0.08954556,107500.0,107490.0,0.00114782]
[1748140892831,0.09054556,107500.0,107490.0,0.00114782]
[1748140893161,0.08954556,107500.0,107490.0,0.00114782]
[1748140893599,0.09054556,107500.0,107490.0,0.00114782]
[1748140894541,0.09154556,107500.0,107490.0,0.00114782]
[1748140897655,0.09154556,107500.0,107490.0,0.92362782]
[1748140897891,0.09154556,107500.0,107490.0,0.92248]
[1748140899887,0.09154556,107500.0,107490.0,0.36572]
[1748140900506,0.10954556,107500.0,107490.0,0.36572]
[1748140901892,0.10954556,107500.0,107480.0,0.2807]
[1748140902244,0.10954556,107500.0,107490.0,0.00114783]
[1748140902962,0.10754556,107500.0,107490.0,0.00114783]
[1748140903161,0.12794556,107500.0,107490.0,0.00114783]
[1748140903706,0.12894556,107500.0,107490.0,0.00214783]
[1748140907586,0.12894556,107500.0,107490.0,0.92462783]
[1748140907748,0.12894556,107500.0,107490.0,0.92348]
[1748140909817,0.12894556,107500.0,107490.0,0.36672]
[1748140911730,0.12894556,107500.0,107490.0,0.001]
[1748140912209,0.12894556,107500.0,107490.0,0.00214783]
[1748140912736,0.12894556,107500.0,107490.0,0.001]
[1748140917073,0.12894556,107500.0,107490.0,0.00214784]
[1748140917578,0.12894556,107500.0,107490.0,0.92466784]
[1748140917779,0.12894556,107500.0,107490.0,0.92352]
[1748140917979,0.12894556,107500.0,107490.0,0.36676]
[1748140918215,0.09154556,107500.0,107490.0,0.001]
[1748140918429,0.002,107500.0,107490.0,0.05085208]
[1748140918619,0.002,107500.0,107490.0,0.00214706]
[1748140918805,0.002,107500.0,107490.0,0.28828583]
[1748140919010,0.002,107500.0,107490.0,0.62828583]
[1748140920660,0.11074556,107500.0,107490.0,0.34988583]
[1748140920860,0.12954556,107500.0,107490.0,0.62828583]
[1748140921585,0.14408641,107500.0,107490.0,0.00988583]
[1748140921791,0.14408641,107500.0,107490.0,0.28828583]
[1748140922408,0.002,107500.0,107490.0,0.2817]
[1748140922560,0.04,107500.0,107490.0,0.2794]
[1748140922765,0.12954556,107500.0,107490.0,0.2794]
[1748140923860,0.12954556,107500.0,107490.0,0.001]
[1748140924096,0.12954556,107500.0,107490.0,0.2794]
[1748140925750,0.12954556,107500.0,107490.0,0.001]
[1748140926120,0.12954556,107500.0,107490.0,0.2794]
[1748140926501,0.12954556,107500.0,107490.0,0.6194]
[1748140927594,0.12954556,107500.0,107490.0,1.54116]
[1748140928372,0.12954556,107500.0,107490.0,0.98444]
[1748140930435,0.12954556,107500.0,107490.0,0.6194]
[1748140937551,0.12954556,107500.0,107490.0,1.20016]
[1748140939768,0.12954556,107500.0,107490.0,0.64344]
[1748140941813,0.12954556,107500.0,107490.0,0.2784]
[1748140942428,0.12954556,107500.0,107460.0,0.24540315]
[1748140942658,0.12954556,107500.0,107470.0,1.52330484]
[1748140942895,0.13004819,107500.0,107470.0,0.2784]
[1748140943081,0.13004819,107500.0,107470.0,0.28728886]
[1748140944065,0.0371,107490.0,107480.0,0.00114784]
[1748140944268,0.0371,107490.0,107480.0,0.27954784]
[1748140944473,0.0371,107490.0,107480.0,0.6184]
[1748140944988,0.0371,107490.0,107480.0,0.62728886]
[1748140945490,0.0381,107490.0,107480.0,0.62728886]
[1748140946724,0.0381,107490.0,107480.0,0.62928886]
[1748140947199,0.001,107490.0,107480.0,0.62928886]
[1748140947503,0.001,107490.0,107480.0,1.55104886]
[1748140947910,0.0195,107490.0,107480.0,1.55104886]
[1748140948119,0.0379,107490.0,107480.0,1.55104886]
[1748140949351,0.0379,107490.0,107480.0,0.35088886]
[1748140949558,0.0379,107490.0,107480.0,0.62928886]
[1748140950622,0.0379,107490.0,107480.0,0.35088886]
[1748140950796,0.0379,107490.0,107480.0,0.62928886]
[1748140952528,0.0379,107490.0,107480.0,0.01088886]
[1748140952529,0.53539743,107490.0,107480.0,0.01088886]
[1748140952753,0.0371,107460.0,107450.0,0.05330378]
[1748140952964,0.14118641,107460.0,107450.0,0.31700367]
[1748140953180,0.14409456,107460.0,107450.0,0.31700367]
[1748140953597,0.14409456,107460.0,107450.0,0.04728147]
[1748140953822,0.05177864,107430.0,107390.0,0.01981067]
[1748140954063,0.05177864,107430.0,107400.0,4.96893713]
[1748140954270,0.05177864,107430.0,107410.0,3.947593]
[1748140954898,0.05177864,107430.0,107420.0,0.27844]
[1748140955119,0.05177864,107430.0,107420.0,1.402217]
[1748140955658,0.05177864,107430.0,107420.0,1.77899837]
[1748140955874,0.05277864,107430.0,107420.0,1.77899837]
[1748140956077,0.05277864,107430.0,107420.0,1.25362751]
[1748140956486,0.05277864,107430.0,107420.0,0.50036037]
[1748140957202,0.05177864,107430.0,107420.0,0.50036037]
[1748140957405,0.05277864,107430.0,107420.0,0.77880037]
[1748140957618,0.05277864,107430.0,107420.0,1.70200037]
[1748140958428,0.05277864,107430.0,107420.0,1.14512037]
[1748140958725,0.05277864,107430.0,107420.0,0.78080037]
[1748140963267,0.07217864,107430.0,107420.0,0.78080037]
[1748140965110,0.09177864,107430.0,107420.0,0.78080037]
[1748140966229,0.09177864,107430.0,107420.0,0.78943966]
[1748140967532,0.09177864,107430.0,107420.0,1.71075966]
[1748140970447,0.09177864,107430.0,107420.0,0.78943966]
[1748140971386,0.051,107430.0,107420.0,0.81298138]
[1748140971584,0.001,107430.0,107420.0,0.78943966]
[1748140972640,0.03552136,107450.0,107430.0,0.0008]
[1748140972969,0.00177864,107450.0,107440.0,1.570962]
[1748140973287,0.00177864,107450.0,107440.0,1.289303]
[1748140973504,0.00177864,107450.0,107440.0,1.629303]
[1748140973844,0.00177864,107450.0,107440.0,1.62939673]
[1748140974080,0.00277864,107450.0,107440.0,1.62939673]
[1748140974285,0.00177864,107450.0,107440.0,1.62939673]
[1748140974483,0.1105242,107460.0,107450.0,0.34]
[1748140975624,0.1005242,107460.0,107440.0,0.27861373]
[1748140975804,0.11684556,107460.0,107450.0,0.00114985]
[1748140976210,0.1196242,107460.0,107450.0,0.00214985]
[1748140976567,0.11984556,107460.0,107450.0,0.00214985]
[1748140976910,0.1216242,107460.0,107450.0,0.00214985]
[1748140977347,0.04207864,107460.0,107450.0,0.00214985]
[1748140977553,0.04207864,107460.0,107450.0,0.92346985]
[1748140977780,0.04207864,107460.0,107450.0,0.92232]
[1748140977955,0.04207864,107460.0,107450.0,0.3654]
[1748140979501,0.04207864,107460.0,107450.0,0.001]
[1748140979720,0.04207864,107460.0,107450.0,0.00214955]
[1748140982865,0.04207864,107460.0,107450.0,0.001]
[1748140983010,0.04207864,107460.0,107450.0,0.27948]
[1748140987524,0.04207864,107460.0,107450.0,1.53996]
[1748140989511,0.04207864,107460.0,107450.0,0.61948]
[1748140997502,0.04207864,107460.0,107450.0,1.53996]
[1748140999771,0.04207864,107460.0,107450.0,0.61948]
[1748141005619,0.04207864,107460.0,107450.0,0.61977]
[1748141006472,0.04207864,107460.0,107450.0,1.44094]
[1748141007498,0.04207864,107460.0,107450.0,2.36142]
[1748141009474,0.04207864,107460.0,107450.0,1.583751]
[1748141010623,0.04207864,107460.0,107450.0,1.41132]
[1748141011598,0.04207864,107460.0,107450.0,1.04776]
[1748141017602,0.04207864,107460.0,107450.0,1.96732]
[1748141019411,0.04207864,107460.0,107450.0,1.41044]
[1748141021572,0.04207864,107460.0,107450.0,1.04776]
[1748141025135,0.0403,107460.0,107450.0,1.04776]
[1748141027534,0.0403,107460.0,107450.0,1.96732]
[1748141027740,0.0403,107460.0,107450.0,1.852941]
[1748141027937,0.0403,107460.0,107450.0,1.839055]
[1748141029230,0.0403,107460.0,107450.0,1.282175]
[1748141031165,0.0403,107460.0,107450.0,0.919495]
[1748141034131,0.0903,107460.0,107450.0,0.919495]
[1748141034330,0.0403,107460.0,107450.0,0.919495]
[1748141036334,0.0903,107460.0,107450.0,0.919495]
[1748141036689,0.0403,107460.0,107450.0,0.919495]
[1748141037651,0.0403,107460.0,107450.0,1.839055]
[1748141038465,0.0403,107460.0,107450.0,1.282175]
[1748141038685,0.0403,107460.0,107450.0,0.919495]
[1748141045798,0.0403,107460.0,107450.0,0.641015]
[1748141046014,0.04207864,107460.0,107450.0,0.61977]
[1748141046441,0.04207864,107460.0,107450.0,0.719805]
[1748141046666,0.04207864,107460.0,107450.0,0.61977]
[1748141047350,0.04207864,107460.0,107450.0,0.34129]
[1748141047551,0.04207864,107460.0,107450.0,1.53845]
[1748141049212,0.04207864,107460.0,107450.0,0.98157]
[1748141051350,0.04207864,107460.0,107450.0,0.61977]
[1748141051560,0.04207864,107460.0,107450.0,0.858463]
[1748141052351,0.04207864,107460.0,107450.0,0.579983]
[1748141052553,0.04207864,107460.0,107450.0,0.858463]
[1748141054260,0.04207864,107460.0,107450.0,0.85636607]
[1748141055762,0.0403,107460.0,107450.0,0.85636607]
[1748141056103,0.01400833,107480.0,107450.0,0.87922921]
[1748141056104,0.00761982,107470.0,107450.0,0.87922921]
[1748141056312,0.00761982,107470.0,107460.0,2.0626127]
[1748141056516,0.00939846,107470.0,107460.0,2.061464]
[1748141057243,0.01039846,107470.0,107460.0,2.061464]
[1748141057463,0.01039846,107470.0,107460.0,2.980144]
[1748141057797,0.01139846,107470.0,107460.0,2.980144]
[1748141058176,0.00861982,107470.0,107460.0,2.980144]
[1748141058491,0.01139846,107470.0,107460.0,2.19615234]
[1748141058694,0.01061982,107470.0,107460.0,2.19615234]
[1748141058879,0.003,107470.0,107460.0,2.82768]
[1748141059074,0.002,107470.0,107460.0,2.82208923]
[1748141059462,0.0405,107470.0,107460.0,0.33406923]
[1748141059662,0.0405,107470.0,107460.0,0.33506923]
[1748141061806,0.0405,107470.0,107460.0,0.321028]
[1748141062127,0.0405,107470.0,107460.0,0.08451084]
[1748141062328,0.0405,107470.0,107460.0,1.088012]
[1748141062539,0.0405,107470.0,107460.0,0.709921]
[1748141063776,0.021,107470.0,107460.0,0.72400734]
[1748141064152,0.0405,107470.0,107460.0,1.00244734]
[1748141066220,0.0405,107470.0,107460.0,0.72400734]
[1748141066404,0.0405,107470.0,107460.0,1.00244734]
[1748141067587,0.0405,107470.0,107460.0,1.92104734]
[1748141070077,0.0405,107470.0,107460.0,1.00244734]
[1748141074373,0.021,107470.0,107460.0,1.00244734]
[1748141074578,0.071,107470.0,107460.0,1.00244734]
[1748141074735,0.0907,107470.0,107460.0,1.00244734]
[1748141075139,0.0907,107470.0,107460.0,0.72400734]
[1748141075363,0.0407,107470.0,107460.0,1.00244734]
[1748141077593,0.0407,107470.0,107460.0,1.51924734]
[1748141079385,0.0407,107470.0,107460.0,1.00244734]
[1748141080016,0.04247864,107470.0,107460.0,0.41228834]
[1748141080218,0.04247864,107470.0,107460.0,0.29352634]
[1748141080437,0.13024556,107470.0,107460.0,0.29352634]
[1748141080873,0.13024556,107470.0,107460.0,0.001]
[1748141080874,0.14478641,107470.0,107460.0,0.001]
[1748141081074,0.14478641,107470.0,107460.0,0.27944]
[1748141081281,0.14769435,107470.0,107460.0,0.61944]
[1748141081480,0.14769435,107470.0,107460.0,0.27944]
[1748141082283,0.14769435,107470.0,107460.0,0.001]
[1748141082491,0.14769435,107470.0,107460.0,0.27944]
[1748141083329,0.14769435,107470.0,107460.0,0.28812123]
[1748141083535,0.1331535,107470.0,107460.0,0.00968123]
[1748141083790,0.13024556,107470.0,107460.0,0.28812123]
[1748141084000,0.13024556,107470.0,107460.0,0.27944]
[1748141085523,0.04247864,107470.0,107460.0,0.27944]
[1748141087462,0.04247864,107470.0,107460.0,1.19724]
[1748141087659,0.04247864,107470.0,107460.0,1.21132549]
[1748141088091,0.04247864,107470.0,107460.0,1.55132549]
[1748141088554,0.04247864,107470.0,107460.0,0.99444549]
[1748141088763,0.04247864,107470.0,107460.0,0.63352549]
[1748141091901,0.0407,107470.0,107460.0,1.66241649]
[1748141092331,0.0407,107470.0,107460.0,1.46766349]
[1748141092730,0.002,107470.0,107460.0,1.46766349]
[1748141093377,0.052,107470.0,107460.0,1.46766349]
[1748141097590,0.052,107470.0,107460.0,2.38542349]
[1748141098549,0.052,107470.0,107460.0,1.82858349]
[1748141099382,0.0707,107470.0,107460.0,1.82858349]
[1748141100275,0.0707,107470.0,107460.0,1.34913621]
[1748141100483,0.0707,107470.0,107460.0,0.834138]
[1748141100688,0.0707,107470.0,107460.0,0.645635]
[1748141100890,0.0707,107470.0,107460.0,0.626044]
[1748141101501,0.0895,107470.0,107460.0,0.545187]
[1748141101949,0.0895,107470.0,107460.0,0.55931866]
[1748141102385,0.052,107470.0,107460.0,0.55931866]
[1748141102820,0.002,107470.0,107460.0,0.62087866]
[1748141103036,0.052,107470.0,107460.0,0.93141866]
[1748141103253,0.002,107470.0,107460.0,0.93141866]
[1748141103456,0.052,107470.0,107460.0,0.91781866]
[1748141104651,0.002,107470.0,107460.0,0.91781866]
[1748141104907,0.052,107470.0,107460.0,0.93141866]
[1748141105321,0.052,107470.0,107460.0,0.91781866]
[1748141105520,0.002,107470.0,107460.0,0.91781866]
[1748141105777,0.052,107470.0,107460.0,0.91781866]
[1748141106389,0.052,107470.0,107460.0,1.00736422]
[1748141106390,0.002,107470.0,107460.0,1.00736422]
[1748141106597,0.002,107470.0,107460.0,0.8721976]
[1748141106805,0.002,107470.0,107460.0,0.5937576]
[1748141106950,0.002,107470.0,107460.0,0.84834281]
[1748141107175,0.002,107470.0,107460.0,0.82508238]
[1748141107580,0.002,107470.0,107460.0,1.74200238]
[1748141107782,0.052,107470.0,107460.0,1.74200238]
[1748141108210,0.052,107470.0,107460.0,1.72740238]
[1748141110047,0.002,107470.0,107460.0,1.17064238]
[1748141110201,0.002,107470.0,107460.0,0.81048238]
[1748141110629,0.002,107470.0,107460.0,0.8721576]
[1748141111892,0.002,107470.0,107460.0,0.8735576]
[1748141112116,0.0366,107500.0,107470.0,0.3734]
[1748141112334,0.0366,107500.0,107490.0,0.34]
[1748141112549,0.0182,107500.0,107490.0,4.475582]
[1748141113664,0.07025024,107500.0,107490.0,4.475582]
[1748141114381,0.09155024,107500.0,107490.0,4.475582]
[1748141115316,0.04255024,107500.0,107490.0,4.475582]
[1748141115529,0.09255024,107500.0,107490.0,4.475582]
[1748141116193,0.04255024,107500.0,107490.0,4.475582]
[1748141116404,0.02325024,107500.0,107490.0,4.475582]
[1748141116644,0.07325024,107500.0,107490.0,4.475582]
[1748141117208,0.09255024,107500.0,107490.0,4.475582]
[1748141117520,0.09255024,107500.0,107490.0,3.618689]
[1748141117943,0.09255024,107500.0,107490.0,2.573176]
[1748141118147,0.09255024,107500.0,107490.0,2.743909]
[1748141118966,0.09432888,107500.0,107490.0,0.97711]
[1748141119186,0.09432888,107500.0,107490.0,1.25547]
[1748141120125,0.09432888,107500.0,107490.0,0.91547]
[1748141127537,0.09432888,107500.0,107490.0,1.27555]
[1748141130381,0.09432888,107500.0,107490.0,0.91547]
[1748141137576,0.09432888,107500.0,107490.0,1.83215]
[1748141139562,0.09432888,107500.0,107490.0,0.91547]
[1748141147572,0.09432888,107500.0,107490.0,1.83159]
[1748141148790,0.09255024,107500.0,107490.0,1.27495]
[1748141149116,0.00505024,107500.0,107490.0,1.29876479]
[1748141149693,0.05505024,107500.0,107490.0,1.27495]
[1748141149911,0.07415024,107500.0,107490.0,1.27495]
[1748141150079,0.09425024,107500.0,107490.0,1.27495]
[1748141151043,0.09425024,107500.0,107490.0,0.91547]
[1748141157524,0.09425024,107500.0,107490.0,1.83159]
[1748141157717,0.04425024,107500.0,107490.0,1.83159]
[1748141157919,0.09425024,107500.0,107490.0,1.83159]
[1748141160398,0.09425024,107500.0,107490.0,1.27495]
[1748141160540,0.04425024,107500.0,107490.0,0.91543]
[1748141160743,0.09425024,107500.0,107490.0,0.91543]
[1748141161820,0.09425024,107500.0,107490.0,0.63711]
[1748141162026,0.09425024,107500.0,107490.0,0.91543]
[1748141162518,0.07415024,107500.0,107490.0,0.91543]
[1748141162778,0.02415024,107500.0,107490.0,0.91543]
[1748141162985,0.00505024,107500.0,107490.0,0.91543]
[1748141163447,0.0892,107510.0,107490.0,0.91543]
[1748141163684,0.0892,107510.0,107500.0,3.98687415]
[1748141163685,0.00050384,107510.0,107500.0,3.98687415]
[1748141163871,0.00050384,107510.0,107500.0,4.00954235]
[1748141164136,0.12153342,107550.0,107520.0,0.0387]
[1748141164359,0.0001406,107540.0,107530.0,0.27946502]
[1748141164570,0.0001406,107540.0,107530.0,0.27832]
[1748141164793,0.04836196,107540.0,107530.0,3.103183]
[1748141165009,0.0001406,107540.0,107530.0,3.103183]
[1748141165219,0.04836196,107540.0,107530.0,2.849277]
[1748141165588,0.05036196,107540.0,107530.0,2.85815829]
[1748141165799,0.0021406,107540.0,107530.0,2.85815829]
[1748141166004,0.04822136,107540.0,107530.0,2.96710385]
[1748141166215,0.001,107540.0,107530.0,2.96710385]
[1748141166352,0.00283755,107540.0,107530.0,2.96710385]
[1748141166574,0.003,107540.0,107530.0,3.30710385]
[1748141167013,0.00283755,107540.0,107530.0,3.30710385]
[1748141167448,0.00383755,107540.0,107530.0,3.30710385]
[1748141167628,0.00383755,107540.0,107530.0,4.23667667]
[1748141168523,0.001,107540.0,107530.0,4.23667667]
[1748141168727,0.04137864,107560.0,107530.0,3.68011667]
[1748141168929,0.04137864,107560.0,107540.0,2.99164358]
[1748141169106,0.04137864,107560.0,107550.0,1.093056]
[1748141169316,0.04137864,107560.0,107550.0,1.092926]
[1748141169922,0.04237864,107560.0,107550.0,1.092926]
[1748141170403,0.04137864,107560.0,107550.0,1.092926]
[1748141171166,0.04637864,107560.0,107550.0,1.092926]
[1748141171609,0.04137864,107560.0,107550.0,1.092926]
[1748141171818,0.04137864,107560.0,107550.0,0.500222]
[1748141172152,0.04137864,107560.0,107550.0,0.480543]
[1748141172762,0.04337864,107560.0,107550.0,0.480543]
[1748141174002,0.04337864,107560.0,107550.0,0.50754413]
[1748141174959,0.04337864,107560.0,107550.0,0.480543]
[1748141177633,0.04337864,107560.0,107550.0,0.839383]
[1748141178965,0.0416,107560.0,107550.0,0.839383]
[1748141179199,0.04337864,107560.0,107550.0,0.839383]
[1748141180432,0.04337864,107560.0,107550.0,0.63716]
[1748141180636,0.04337864,107560.0,107550.0,0.746473]
[1748141181431,0.04337864,107560.0,107550.0,0.387633]
[1748141182456,0.0416,107560.0,107550.0,0.387633]
[1748141184467,0.04337864,107560.0,107550.0,0.387633]
[1748141185892,0.04337864,107560.0,107550.0,0.109313]
[1748141186077,0.00283755,107550.0,107540.0,2.57375447]
[1748141186276,0.00283755,107550.0,107540.0,2.85081]
[1748141187243,0.001,107550.0,107540.0,2.85081]
[1748141187452,0.001,107550.0,107540.0,3.42731]
[1748141187654,0.001,107550.0,107540.0,3.79498406]
[1748141188044,0.00383755,107550.0,107540.0,3.77588406]
[1748141189007,0.00383755,107550.0,107540.0,3.64107206]
[1748141189200,0.00383755,107550.0,107540.0,2.20523806]
[1748141190307,0.00383755,107550.0,107540.0,1.28999806]
[1748141192836,0.00383755,107550.0,107540.0,1.30107866]
[1748141194933,0.00383755,107550.0,107540.0,1.31588923]
[1748141196216,0.00383755,107550.0,107540.0,1.03768923]
[1748141196375,0.02263755,107550.0,107540.0,1.31588923]
[1748141197696,0.00383755,107550.0,107540.0,1.67468923]
[1748141197909,0.00383755,107550.0,107540.0,1.03768923]
[1748141198045,0.00383755,107550.0,107540.0,1.31588923]
[1748141200263,0.02323755,107550.0,107540.0,1.31588923]
[1748141200663,0.02323755,107550.0,107540.0,1.30107866]
[1748141202918,0.04193755,107550.0,107540.0,1.30107866]
[1748141203418,0.02323755,107550.0,107540.0,1.30107866]
[1748141204741,0.04283755,107550.0,107540.0,0.74727966]
[1748141204951,0.04283755,107550.0,107540.0,0.80168266]
[1748141206233,0.04461619,107550.0,107540.0,0.29911466]
[1748141206449,0.04461619,107550.0,107540.0,0.41062666]
[1748141206817,0.04461619,107550.0,107540.0,0.42959666]
[1748141206991,0.04461619,107550.0,107540.0,0.29911466]
[1748141207393,0.04461619,107550.0,107540.0,0.40152466]
[1748141207591,0.04461619,107550.0,107540.0,1.31624466]
[1748141208020,0.04461619,107550.0,107540.0,1.21383466]
[1748141209060,0.04283755,107550.0,107540.0,0.02091466]
[1748141209263,0.12954556,107550.0,107540.0,0.29911466]
[1748141209803,0.12954556,107550.0,107540.0,0.28803406]
[1748141216589,0.04177864,107550.0,107540.0,0.28807406]
[1748141217595,0.04,107550.0,107540.0,1.20287406]
[1748141220538,0.04,107550.0,107540.0,0.64643406]
[1748141220764,0.04177864,107550.0,107540.0,0.28807406]
[1748141221156,0.04177864,107550.0,107540.0,0.40256506]
[1748141221557,0.00277864,107550.0,107540.0,0.40256506]
[1748141223149,0.00277864,107550.0,107500.0,0.07650725]
[1748141223397,0.02521619,107550.0,107520.0,0.0001406]
[1748141223594,0.02521619,107550.0,107530.0,3.74383604]
[1748141223793,0.02521619,107550.0,107540.0,0.745111]
[1748141223997,0.02421619,107550.0,107530.0,3.742691]
[1748141224218,0.02421619,107550.0,107540.0,0.00114503]
[1748141224406,0.02421619,107550.0,107540.0,1.05681603]
[1748141224750,0.04067864,107550.0,107540.0,1.025671]
[1748141224966,0.04351619,107550.0,107540.0,0.960568]
[1748141225143,0.00283755,107550.0,107540.0,0.960568]
[1748141225289,0.00383755,107550.0,107540.0,0.960568]
[1748141225490,0.04067864,107560.0,107540.0,0.960568]
[1748141225700,0.04067864,107560.0,107550.0,1.032645]
[1748141225927,0.04067864,107560.0,107550.0,0.702833]
[1748141226614,0.04067864,107560.0,107550.0,0.600161]
[1748141226821,0.04167864,107560.0,107550.0,0.404621]
[1748141227443,0.04167864,107560.0,107550.0,0.742692]
[1748141227660,0.04167864,107560.0,107550.0,1.101052]
[1748141227875,0.04367864,107560.0,107550.0,1.101052]
[1748141228272,0.04367864,107560.0,107550.0,1.077152]
[1748141229308,0.04367864,107560.0,107550.0,1.022984]
[1748141229588,0.04367864,107560.0,107550.0,0.9148]
[1748141229824,0.0389,107550.0,107540.0,0.001]
[1748141229999,0.0389,107550.0,107540.0,0.27924]
[1748141231297,0.0399,107550.0,107540.0,0.27824]
[1748141231731,0.0399,107550.0,107540.0,0.27924]
[1748141232344,0.0399,107550.0,107540.0,0.001]
[1748141232541,0.0399,107550.0,107540.0,0.27924]
[1748141232674,0.0399,107550.0,107540.0,0.001]
[1748141232874,0.0399,107550.0,107540.0,0.27924]
[1748141233368,0.0399,107550.0,107540.0,0.001]
[1748141233583,0.0399,107550.0,107540.0,0.28038519]
[1748141233814,0.0399,107550.0,107540.0,0.27924]
[1748141235524,0.0399,107550.0,107540.0,0.28813231]
[1748141237636,0.0399,107550.0,107540.0,1.20261231]
[1748141241213,0.0399,107550.0,107540.0,0.64617231]
[1748141241999,0.0399,107550.0,107540.0,0.00989231]
[1748141242169,0.0399,107550.0,107540.0,0.28813231]
[1748141244034,0.0399,107550.0,107540.0,0.82321231]
[1748141247484,0.04167864,107550.0,107540.0,0.82321231]
[1748141247718,0.04167864,107550.0,107540.0,1.73769231]
[1748141249490,0.04167864,107550.0,107540.0,1.18125231]
[1748141249739,0.04167864,107550.0,107540.0,0.82321231]
[1748141249925,0.04167864,107550.0,107540.0,0.61802731]
[1748141250106,0.04167864,107550.0,107540.0,0.56239931]
[1748141251080,0.04167864,107550.0,107540.0,0.51180931]
[1748141251496,0.00283755,107540.0,107520.0,0.14464848]
[1748141251700,0.00283755,107540.0,107530.0,0.00114512]
[1748141251902,0.00283755,107540.0,107530.0,2.17797712]
[1748141252133,0.00283755,107540.0,107530.0,2.004158]
[1748141252480,0.00283755,107540.0,107530.0,2.01840431]
[1748141252718,0.00283755,107540.0,107530.0,0.48532931]
[1748141252719,0.04281619,107540.0,107530.0,0.48532931]
[1748141253317,0.04281619,107540.0,107530.0,0.48732931]
[1748141255055,0.04281619,107540.0,107530.0,0.82732931]
[1748141257694,0.04281619,107540.0,107530.0,1.18536931]
[1748141259728,0.04281619,107540.0,107530.0,0.82732931]
[1748141261076,0.04281619,107540.0,107530.0,0.63448631]
[1748141261309,0.03997864,107540.0,107530.0,0.01624631]
[1748141261517,0.13065152,107540.0,107530.0,0.01624631]
[1748141261719,0.13065152,107540.0,107530.0,0.29448631]
[1748141264328,0.14519237,107540.0,107530.0,0.002]
[1748141264501,0.48228641,107540.0,107530.0,0.28024]
[1748141264924,0.78589493,107540.0,107530.0,0.28024]
[1748141265312,0.78589493,107540.0,107530.0,0.002]
[1748141265517,0.78589493,107540.0,107530.0,0.27824]
[1748141265853,0.78589493,107540.0,107530.0,0.27924]
[1748141266228,0.78689493,107540.0,107530.0,0.27824]
[1748141266435,0.48428641,107540.0,107530.0,0.27824]
[1748141266757,0.48328641,107540.0,107530.0,0.27824]
[1748141267078,0.48528641,107540.0,107530.0,0.27824]
[1748141267270,0.0374,107520.0,107510.0,0.01360543]
[1748141267528,0.1298523,107520.0,107510.0,0.63612]
[1748141267926,0.1298523,107520.0,107510.0,0.27828]
[1748141268752,0.1298523,107520.0,107510.0,0.28028]
[1748141271235,0.1298523,107520.0,107510.0,0.29450455]
[1748141271450,0.0798523,107520.0,107510.0,0.29450455]
[1748141271652,0.08161153,107520.0,107510.0,0.29450455]
[1748141274581,0.11851153,107520.0,107510.0,0.29450455]
[1748141275846,0.11851153,107520.0,107510.0,0.01622455]
[1748141276400,0.11851153,107520.0,107510.0,0.29454455]
[1748141277541,0.11851153,107520.0,107510.0,1.20906455]
[1748141277787,0.11851153,107520.0,107510.0,0.57282455]
[1748141278051,0.11851153,107520.0,107510.0,0.43454455]
[1748141284070,0.34,107530.0,107510.0,1.23365355]
[1748141284071,0.00177864,107530.0,107510.0,1.23365355]
[1748141284282,0.00177864,107520.0,107510.0,0.47134455]
[1748141284510,0.00177864,107520.0,107510.0,2.05846355]
[1748141284723,0.00177864,107520.0,107510.0,2.54987255]
[1748141284964,0.00177864,107520.0,107510.0,2.31956955]
[1748141285176,0.00177864,107520.0,107510.0,2.32156955]
[1748141285379,0.00177864,107520.0,107510.0,1.97489755]
[1748141285620,0.00177864,107520.0,107510.0,1.14952155]
[1748141285837,0.00177864,107520.0,107510.0,0.77157655]
[1748141286070,0.00177864,107520.0,107510.0,0.65672255]
[1748141286928,0.00177864,107520.0,107510.0,0.66558909]
[1748141287542,0.00177864,107520.0,107510.0,1.53956709]
[1748141287955,0.0191,107520.0,107510.0,1.07961109]
[1748141288161,0.12644556,107520.0,107510.0,1.35793109]
[1748141288390,0.12644556,107520.0,107510.0,0.80133109]
[1748141288952,0.12644556,107520.0,107510.0,0.44341109]
[1748141289720,0.10864556,107520.0,107510.0,0.44341109]
[1748141289941,0.10864556,107520.0,107510.0,0.43454455]
[1748141291000,0.12644556,107520.0,107510.0,0.43454455]
[1748141293506,0.00461619,107500.0,107480.0,0.00550871]
[1748141293709,0.00461619,107500.0,107490.0,0.921218]
[1748141294079,0.00461619,107500.0,107490.0,0.93526725]
[1748141294302,0.00461619,107500.0,107490.0,0.74873525]
[1748141294520,0.02381619,107500.0,107490.0,0.74873525]
[1748141294731,0.02381619,107500.0,107490.0,1.01017387]
[1748141294974,0.00461619,107500.0,107490.0,1.01017387]
[1748141295426,0.00461619,107500.0,107490.0,1.01417387]
[1748141295885,0.00461619,107500.0,107490.0,1.01717387]
[1748141296130,0.00461619,107500.0,107490.0,1.01317387]
[1748141297485,0.00461619,107500.0,107490.0,1.92749387]
[1748141297705,0.00461619,107500.0,107490.0,1.92949387]
[1748141298430,0.00461619,107500.0,107490.0,1.37289387]
[1748141298648,0.00461619,107500.0,107490.0,1.01517387]
[1748141303684,0.02361619,107500.0,107490.0,1.01517387]
[1748141303928,0.02361619,107500.0,107490.0,0.71605787]
[1748141304152,0.04261619,107500.0,107490.0,0.95906887]
[1748141307723,0.04261619,107500.0,107490.0,1.87342887]
[1748141308339,0.02361619,107500.0,107490.0,0.95906887]
[1748141309060,0.04251619,107500.0,107490.0,0.95906887]
[1748141317685,0.04251619,107500.0,107490.0,1.87346887]
[1748141318313,0.04251619,107500.0,107490.0,1.31682887]
[1748141319738,0.00461619,107500.0,107490.0,0.98288366]
[1748141319940,0.00461619,107500.0,107490.0,0.95906887]
[1748141320594,0.02391619,107500.0,107490.0,0.95906887]
[1748141322368,0.04281619,107500.0,107490.0,0.95906887]
[1748141327611,0.04281619,107500.0,107490.0,1.31654887]
[1748141331650,0.04281619,107500.0,107490.0,0.95906887]
[1748141335684,0.04281619,107500.0,107490.0,0.68074887]
[1748141335904,0.04103755,107500.0,107490.0,0.93339987]
[1748141336321,0.13058311,107500.0,107490.0,0.93339987]
[1748141336495,0.13058311,107500.0,107490.0,0.90942387]